fUST/lending_fUST_20250107
["ID","MTS","AMOUNT","RATE_DAILY","PERIOD"]
[347966621,1736253043775,-505.13053785,0.00019178,2]
[347966622,1736253043786,-500.0,0.00019178,2]
[347966623,1736253043795,-500.0,0.00019178,2]
[347966624,1736253043805,-500.0,0.00019178,2]
[347966625,1736253043814,-500.0,0.00019178,2]
[347966626,1736253043825,-500.0,0.00019178,2]
[347966627,1736253043837,-500.0,0.00019178,2]
[347966628,1736253043847,-500.0,0.00019178,2]
[347966629,1736253043858,-500.0,0.00019178,2]
[347966630,1736253043868,-500.0,0.00019178,2]
[347966631,1736253043878,-500.0,0.00019178,2]
[347966632,1736253043888,-500.0,0.00019178,2]
[347966633,1736253043898,-500.0,0.00019178,2]
[347966634,1736253043908,-500.0,0.00019178,2]
[347966635,1736253043917,-500.0,0.00019178,2]
[347966636,1736253043927,-500.0,0.00019178,2]
[347966637,1736253043936,-500.0,0.00019178,2]
[347966638,1736253043945,-500.0,0.00019178,2]
[347966639,1736253043955,-500.0,0.00019178,2]
[347966640,1736253043965,-500.0,0.00019178,2]
[347966641,1736253043977,-501.10608893,0.00019178,2]
[347966642,1736253043986,-500.0,0.00019178,2]
[347966643,1736253043995,-500.0,0.00019178,2]
[347966644,1736253044005,-500.0,0.00019178,2]
[347966645,1736253044016,-500.0,0.00019178,2]
[347966646,1736253044025,-500.0,0.00019178,2]
[347966647,1736253044035,-500.0,0.00019178,2]
[347966648,1736253044044,-500.0,0.00019178,2]
[347966649,1736253044054,-500.42392211,0.00019178,2]
[347966650,1736253044064,-500.0,0.00019178,2]
[347966651,1736253044075,-500.0,0.00019178,2]
[347966652,1736253044201,-500.0,0.00019178,2]
[347966653,1736253044211,-438.11814535,0.00019178,2]
[347966654,1736253044223,-502.23122375,0.00019178,2]
[347966655,1736253044232,-500.0,0.00019178,2]
[347966656,1736253044242,-503.56347911,0.00019178,2]
[347966657,1736253044251,-503.82541384,0.00019178,2]
[347966658,1736253044261,-500.0,0.00019178,2]
[347966659,1736253044275,-500.0,0.00019178,2]
[347966660,1736253044285,-500.82296034,0.00019178,2]
[347966661,1736253044294,-500.0,0.00019178,2]
[347966662,1736253044304,-530.3858625,0.00019178,2]
[347966663,1736253044313,-500.0,0.00019178,2]
[347966664,1736253044323,-500.0,0.00019178,2]
[347966665,1736253044333,-500.0,0.00019178,2]
[347966666,1736253044342,-500.0,0.00019178,2]
[347966667,1736253044352,-500.0,0.00019178,2]
[347966668,1736253044362,-500.0,0.00019178,2]
[347966669,1736253044372,-500.0,0.00019178,2]
[347966670,1736253044382,-500.0,0.00019178,2]
[347966671,1736253044392,-500.0,0.00019178,2]
[347966672,1736253044401,-500.0,0.00019178,2]
[347966673,1736253044411,-501.11220633,0.00019178,2]
[347966674,1736253044420,-500.0,0.00019178,2]
[347966675,1736253044430,-500.0,0.00019178,2]
[347966676,1736253044439,-500.0,0.00019178,2]
[347966677,1736253044448,-500.0,0.00019178,2]
[347966678,1736253044460,-500.0,0.00019178,2]
[347966679,1736253044470,-595.54629651,0.00019178,2]
[347966680,1736253044479,-500.0,0.00019178,2]
[347966681,1736253044489,-500.0,0.00019178,2]
[347966682,1736253044498,-500.0,0.00019178,2]
[347966683,1736253044509,-500.0,0.00019178,2]
[347966684,1736253044521,-500.0,0.00019178,2]
[347966686,1736253044531,-500.0,0.00019178,2]
[347966688,1736253044540,-500.0,0.00019178,2]
[347966690,1736253044550,-500.0,0.00019178,2]
[347966692,1736253044559,-324.16847618,0.00019178,2]
[347966694,1736253044569,-500.0,0.00019178,2]
[347966695,1736253044578,-500.0,0.00019178,2]
[347966696,1736253044587,-500.0,0.00019178,2]
[347966697,1736253044597,-500.0,0.00019178,2]
[347966698,1736253044606,-500.0,0.00019178,2]
[347966699,1736253044615,-202.25092912,0.00019178,2]
[347966701,1736253044626,-500.0,0.00019178,2]
[347966704,1736253044636,-200.47824675,0.00019178,2]
[347966706,1736253044646,-500.0,0.00019178,2]
[347966707,1736253044655,-500.0,0.00019178,2]
[347966709,1736253044665,-965.99,0.00019178,2]
[347966711,1736253044675,-151.0,0.00019178,2]
[347966714,1736253044685,-500.0,0.00019178,2]
[347966716,1736253044695,-151.0,0.00019178,2]
[347966718,1736253044705,-151.0,0.00019178,2]
[347966720,1736253044714,-500.0,0.00019178,2]
[347966722,1736253044723,-500.0,0.00019178,2]
[347966723,1736253044733,-151.0,0.00019178,2]
[347966724,1736253044742,-500.0,0.00019178,2]
[347966726,1736253044752,-151.0,0.00019178,2]
[347966728,1736253044761,-500.0,0.00019178,2]
[347966730,1736253044775,-500.0,0.00019178,2]
[347966731,1736253044786,-151.0,0.00019178,2]
[347966733,1736253044795,-151.0,0.00019178,2]
[347966735,1736253044804,-151.0,0.00019178,2]
[347966737,1736253044813,-500.0,0.00019178,2]
[347966739,1736253044826,-151.0,0.00019178,2]
[347966741,1736253044835,-151.0,0.00019178,2]
[347966743,1736253044844,-500.0,0.00019178,2]
[347966745,1736253044854,-500.0,0.00019178,2]
[347966747,1736253044864,-500.0,0.00019178,2]
[347966749,1736253044874,-500.0,0.00019178,2]
[347966751,1736253044883,-500.0,0.00019178,2]
[347966753,1736253044893,-500.0,0.00019178,2]
[347966755,1736253044902,-500.0,0.00019178,2]
[347966757,1736253044911,-500.0,0.00019178,2]
[347966759,1736253044921,-500.0,0.00019178,2]
[347966761,1736253044931,-500.0,0.00019178,2]
[347966763,1736253044940,-500.0,0.00019178,2]
[347966765,1736253044950,-1926.84,0.00019178,2]
[347966767,1736253044960,-967.27,0.00019178,2]
[347966769,1736253044976,-500.0,0.00019178,2]
[347966772,1736253044986,-500.0,0.00019178,2]
[347966774,1736253044995,-500.0,0.00019178,2]
[347966775,1736253045005,-500.0,0.00019178,2]
[347966777,1736253045015,-503.11613281,0.00019178,2]
[347966779,1736253045027,-500.0,0.00019178,2]
[347966781,1736253045036,-500.0,0.00019178,2]
[347966784,1736253045047,-500.0,0.00019178,2]
[347966785,1736253045057,-500.0,0.00019178,2]
[347966787,1736253045067,-500.0,0.00019178,2]
[347966789,1736253045076,-500.0,0.00019178,2]
[347966791,1736253045086,-500.0,0.00019178,2]
[347966793,1736253045095,-500.0,0.00019178,2]
[347966795,1736253045105,-500.0,0.00019178,2]
[347966797,1736253045115,-500.0,0.00019178,2]
[347966799,1736253045125,-500.0,0.00019178,2]
[347966801,1736253045134,-500.0,0.00019178,2]
[347966803,1736253045143,-500.0,0.00019178,2]
[347966805,1736253045153,-419.22498913,0.00019178,2]
[347966807,1736253045163,-626.0,0.00019178,2]
[347966809,1736253045172,-626.0,0.00019178,2]
[347966811,1736253045182,-516.77623304,0.00019178,2]
[347966836,1736253045816,-500.0,0.00019084,2]
[347966837,1736253045828,-500.0,0.00019084,2]
[347966838,1736253045837,-172.75,0.00019084,2]
[347966839,1736253045849,-327.25,0.00019084,2]
[347966840,1736253045858,-500.0,0.00019084,2]
[347966841,1736253045867,-500.0,0.00019084,2]
[347966842,1736253045895,-500.0,0.00019084,2]
[347966843,1736253045904,-500.0,0.00019084,2]
[347966844,1736253045914,-617.87551228,0.00019084,2]
[347966845,1736253045923,-109.22376696,0.00019178,2]
[347966846,1736253045932,-500.0,0.00019178,2]
[347966847,1736253045942,-500.0,0.00019178,2]
[347966848,1736253045952,-626.0,0.00019178,2]
[347966849,1736253045961,-626.0,0.00019178,2]
[347966850,1736253045975,-626.0,0.00019178,2]
[347966851,1736253045984,-626.0,0.00019178,2]
[347966852,1736253045993,-626.0,0.00019178,2]
[347966853,1736253046002,-626.0,0.00019178,2]
[347966854,1736253046011,-626.0,0.00019178,2]
[347966855,1736253046024,-626.0,0.00019178,2]
[347966856,1736253046034,-626.0,0.00019178,2]
[347966857,1736253046043,-500.0,0.00019178,2]
[347966858,1736253046052,-626.0,0.00019178,2]
[347966859,1736253046061,-303.65072861,0.00019178,2]
[347966918,1736253046739,-322.34927139,0.00019178,2]
[347966920,1736253046748,-206.02846064,0.00019178,2]
[347967326,1736253434518,400.0,0.00013973,2]
[347967327,1736253503468,26765.0,0.00025,120]
[347967351,1736254232258,-300.0,0.0001807,2]
[347967352,1736254232268,-6443.18617495,0.00018071,2]
[347967353,1736254232280,-10318.94674033,0.00018071,2]
[347967389,1736254238160,-8137.86708472,0.00018071,2]
[347967390,1736254238170,-570.472,0.0001822,2]
[347967391,1736254238180,-238.595,0.0001858,2]
[347967392,1736254238189,-150.0,0.00018581,2]
[347967393,1736254238199,-2081.0,0.00018581,2]
[347967394,1736254238209,-535.0,0.00018581,2]
[347967395,1736254238218,-2317.0,0.00018581,2]
[347967396,1736254238227,-551.53983242,0.00018709,2]
[347967397,1736254238237,-500.0,0.00018809,2]
[347967398,1736254238249,-153.8,0.00018809,2]
[347967399,1736254238259,-2000.0,0.00019,4]
[347967400,1736254238268,-156.82368137,0.00019078,2]
[347967401,1736254238277,-252.38374018,0.00019078,2]
[347967402,1736254238418,-826.0,0.000191,2]
[347967403,1736254238428,-214.6648391,0.00019123,2]
[347967404,1736254238438,-153.0,0.00019123,2]
[347967405,1736254238448,-212.2873082,0.00019123,2]
[347967406,1736254238457,-306.5322653,0.00019123,2]
[347967407,1736254238467,-153.0,0.00019123,2]
[347967408,1736254238477,-214.6648391,0.00019123,2]
[347967409,1736254238488,-153.7491537,0.00019123,2]
[347967410,1736254238501,-153.0,0.00019123,2]
[347967411,1736254238511,-213.844344,0.00019123,2]
[347967412,1736254238522,-405.48070269,0.00019177,2]
[347967413,1736254238531,-513.09727914,0.00019177,2]
[347967414,1736254238541,-430.81085,0.00019178,2]
[347967415,1736254238551,-430.81085,0.00019178,2]
[347967416,1736254238560,-430.81085,0.00019178,2]
[347967417,1736254238570,-151.0,0.00019178,2]
[347967418,1736254238580,-158.496198,0.00019178,2]
[347967419,1736254238590,-151.0,0.00019178,2]
[347967420,1736254238601,-151.0,0.00019178,2]
[347967421,1736254238611,-303.66725,0.00019178,2]
[347967422,1736254238621,-303.66725,0.00019178,2]
[347967423,1736254238632,-303.66725,0.00019178,2]
[347967424,1736254238642,-303.66725,0.00019178,2]
[347967425,1736254238652,-303.66725,0.00019178,2]
[347967426,1736254238663,-303.66725,0.00019178,2]
[347967427,1736254238672,-303.66725,0.00019178,2]
[347967428,1736254238682,-303.66725,0.00019178,2]
[347967429,1736254238692,-303.66725,0.00019178,2]
[347967430,1736254238702,-303.66725,0.00019178,2]
[347967431,1736254238712,-151.0,0.00019178,2]
[347967432,1736254238722,-151.0,0.00019178,2]
[347967433,1736254238731,-151.0,0.00019178,2]
[347967434,1736254238741,-151.0,0.00019178,2]
[347967435,1736254238751,-151.0,0.00019178,2]
[347967436,1736254238761,-151.0,0.00019178,2]
[347967437,1736254238771,-41.53095694,0.00019178,2]
[347967438,1736254238787,-109.46904306,0.00019178,2]
[347967439,1736254238796,-144.85605026,0.00019178,2]
[347967440,1736254238820,-315.623486,0.00019173,2]
[347967441,1736254238830,-6.14394974,0.00019178,2]
[347967442,1736254238840,-151.0,0.00019178,2]
[347967443,1736254238850,-151.0,0.00019178,2]
[347967444,1736254238859,-151.0,0.00019178,2]
[347967445,1736254238870,-151.0,0.00019178,2]
[347967446,1736254238880,-151.0,0.00019178,2]
[347967447,1736254238890,-151.0,0.00019178,2]
[347967448,1736254238901,-151.0,0.00019178,2]
[347967449,1736254238912,-151.0,0.00019178,2]
[347967450,1736254238922,-164.849016,0.00019178,2]
[347967451,1736254238933,-217.411385,0.00019178,2]
[347967452,1736254238943,-217.411385,0.00019178,2]
[347967453,1736254238953,-217.411385,0.00019178,2]
[347967454,1736254238963,-217.411385,0.00019178,2]
[347967455,1736254238973,-217.411385,0.00019178,2]
[347967456,1736254238983,-217.411385,0.00019178,2]
[347967457,1736254238994,-217.411385,0.00019178,2]
[347967458,1736254239005,-217.411385,0.00019178,2]
[347967459,1736254239014,-151.0,0.00019178,2]
[347967460,1736254239025,-217.411385,0.00019178,2]
[347967461,1736254239035,-151.0,0.00019178,2]
[347967462,1736254239045,-217.411385,0.00019178,2]
[347967463,1736254239056,-151.0,0.00019178,2]
[347967464,1736254239066,-89.23687362,0.00019178,2]
[347967737,1736254243189,-128.17451138,0.00019178,2]
[347967739,1736254243199,-151.0,0.00019178,2]
[347967741,1736254243208,-217.411385,0.00019178,2]
[347967743,1736254243218,-151.0,0.00019178,2]
[347967745,1736254243227,-151.0,0.00019178,2]
[347967747,1736254243237,-151.0,0.00019178,2]
[347967749,1736254243246,-210.473089,0.00019178,2]
[347967751,1736254243255,-151.0,0.00019178,2]
[347967753,1736254243265,-500.0,0.00019178,2]
[347967755,1736254243274,-500.0,0.00019178,2]
[347967757,1736254243283,-500.0,0.00019178,2]
[347967759,1736254243293,-297.35062344,0.00019178,2]
[347967761,1736254243302,-500.0,0.00019178,2]
[347967763,1736254243312,-501.69499288,0.00019178,2]
[347967765,1736254243322,-500.0,0.00019178,2]
[347967767,1736254243334,-500.0,0.00019178,2]
[347967769,1736254243343,-500.0,0.00019178,2]
[347967771,1736254243354,-500.0,0.00019178,2]
[347967773,1736254243362,-500.0,0.00019178,2]
[347967775,1736254243372,-500.0,0.00019178,2]
[347967777,1736254243381,-500.0,0.00019178,2]
[347967779,1736254243390,-462.9164056,0.00019178,2]
[347967781,1736254243399,-500.0,0.00019178,2]
[347967783,1736254243408,-500.0,0.00019178,2]
[347967785,1736254243418,-500.0,0.00019178,2]
[347967787,1736254243427,-500.0,0.00019178,2]
[347967789,1736254243436,-500.0,0.00019178,2]
[347967791,1736254243445,-500.0,0.00019178,2]
[347967793,1736254243455,-500.0,0.00019178,2]
[347967795,1736254243464,-499.0727427,0.00019178,2]
[347967798,1736254243483,-0.9272573,0.00019178,2]
[347967800,1736254243492,-500.0,0.00019178,2]
[347967802,1736254243502,-500.0,0.00019178,2]
[347967804,1736254243511,-500.0,0.00019178,2]
[347967806,1736254243520,-502.57867064,0.00019178,2]
[347967808,1736254243530,-143.47696889,0.00019178,2]
[347967810,1736254243542,-300.92807378,0.00019178,2]
[347968063,1736254246099,-55.59495733,0.00019178,2]
[347968066,1736254246111,-500.0,0.00019178,2]
[347968068,1736254246122,-500.0,0.00019178,2]
[347968070,1736254246135,-500.0,0.00019178,2]
[347968073,1736254246147,-500.0,0.00019178,2]
[347968075,1736254246159,-500.0,0.00019178,2]
[347968077,1736254246171,-500.0,0.00019178,2]
[347968080,1736254246183,-197.22845,0.00019178,2]
[347968082,1736254246195,-197.22845,0.00019178,2]
[347968084,1736254246207,-197.22845,0.00019178,2]
[347968087,1736254246219,-197.22845,0.00019178,2]
[347968089,1736254246232,-197.22845,0.00019178,2]
[347968091,1736254246244,-500.0,0.00019178,2]
[347968094,1736254246256,-197.22845,0.00019178,2]
[347968096,1736254246268,-197.22845,0.00019178,2]
[347968098,1736254246280,-197.22845,0.00019178,2]
[347968101,1736254246292,-500.0,0.00019178,2]
[347968103,1736254246305,-197.22845,0.00019178,2]
[347968105,1736254246318,-197.22845,0.00019178,2]
[347968108,1736254246332,-197.22845,0.00019178,2]
[347968110,1736254246346,-197.22845,0.00019178,2]
[347968112,1736254246358,-500.0,0.00019178,2]
[347968115,1736254246370,-500.0,0.00019178,2]
[347968117,1736254246382,-503.80232635,0.00019178,2]
[347968119,1736254246395,-500.0,0.00019178,2]
[347968122,1736254246407,-500.0,0.00019178,2]
[347968124,1736254246420,-500.0,0.00019178,2]
[347968127,1736254246432,-612.5610324,0.00019178,2]
[347968129,1736254246444,-500.0,0.00019178,2]
[347968131,1736254246455,-500.0,0.00019178,2]
[347968133,1736254246468,-151.0,0.00019178,2]
[347968136,1736254246481,-151.0,0.00019178,2]
[347968138,1736254246492,-500.0,0.00019178,2]
[347968141,1736254246506,-151.0,0.00019178,2]
[347968143,1736254246518,-151.0,0.00019178,2]
[347968145,1736254246529,-151.0,0.00019178,2]
[347968148,1736254246542,-500.0,0.00019178,2]
[347968150,1736254246554,-500.0,0.00019178,2]
[347968152,1736254246567,-500.0,0.00019178,2]
[347968155,1736254246579,-500.0,0.00019178,2]
[347968157,1736254246591,-500.0,0.00019178,2]
[347968159,1736254246603,-500.0,0.00019178,2]
[347968162,1736254246615,-500.0,0.00019178,2]
[347968164,1736254246627,-500.0,0.00019178,2]
[347968166,1736254246640,-500.0,0.00019178,2]
[347968169,1736254246651,-500.0,0.00019178,2]
[347968171,1736254246663,-500.0,0.00019178,2]
[347968173,1736254246676,-500.0,0.00019178,2]
[347968175,1736254246687,-500.0,0.00019178,2]
[347968177,1736254246697,-500.0,0.00019178,2]
[347968179,1736254246706,-1029.79,0.00019178,2]
[347968181,1736254246715,-500.0,0.00019178,2]
[347968184,1736254246725,-610.94961984,0.00019178,2]
[347968186,1736254246734,-500.0,0.00019178,2]
[347968208,1736254246743,-587.96876819,0.00019178,2]
[347968211,1736254246949,-500.0,0.00019178,2]
[347968213,1736254246965,-500.0,0.00019178,2]
[347968216,1736254246975,-500.84848861,0.00019178,2]
[347968218,1736254246984,-546.74231026,0.00019178,2]
[347968220,1736254246994,-926.97,0.00019178,2]
[347968222,1736254247004,-500.0,0.00019178,2]
[347968224,1736254247014,-500.0,0.00019178,2]
[347968226,1736254247025,-500.0,0.00019178,2]
[347968228,1736254247036,-500.0,0.00019178,2]
[347968230,1736254247046,-500.0,0.00019178,2]
[347968232,1736254247055,-500.0,0.00019178,2]
[347968234,1736254247065,-208.9607838,0.00019178,2]
[347968236,1736254247074,-500.0,0.00019178,2]
[347968238,1736254247083,-623.17,0.00019178,2]
[347968240,1736254247093,-500.0,0.00019178,2]
[347968242,1736254247103,-501.4155558,0.00019178,2]
[347968244,1736254247112,-500.0,0.00019178,2]
[347968246,1736254247122,-500.0,0.00019178,2]
[347968248,1736254247131,-6.40475742,0.00019178,2]
[347968251,1736254247148,-493.59524258,0.00019178,2]
[347968253,1736254247157,-500.0,0.00019178,2]
[347968255,1736254247167,-500.0,0.00019178,2]
[347968257,1736254247177,-500.0,0.00019178,2]
[347968259,1736254247186,-418.44398443,0.00019178,2]
[347968261,1736254247197,-81.55601557,0.00019178,2]
[347968263,1736254247207,-500.0,0.00019178,2]
[347968265,1736254247217,-500.0,0.00019178,2]
[347968267,1736254247226,-500.0,0.00019178,2]
[347968269,1736254247235,-1000.0,0.00019178,2]
[347968271,1736254247246,-500.0,0.00019178,2]
[347968273,1736254247257,-518.16303006,0.00019178,2]
[347968275,1736254247266,-500.0,0.00019178,2]
[347968277,1736254247276,-500.0,0.00019178,2]
[347968279,1736254247285,-500.0,0.00019178,2]
[347968281,1736254247294,-418.02698273,0.00019178,2]
[347968283,1736254247303,-500.47243366,0.00019178,2]
[347968285,1736254247313,-500.0,0.00019178,2]
[347968287,1736254247323,-500.0,0.00019178,2]
[347968289,1736254247334,-500.0,0.00019178,2]
[347968291,1736254247344,-500.0,0.00019178,2]
[347968293,1736254247354,-500.0,0.00019178,2]
[347968295,1736254247363,-500.0,0.00019178,2]
[347968297,1736254247373,-500.0,0.00019178,2]
[347968299,1736254247383,-500.0,0.00019178,2]
[347968301,1736254247392,-426.58153798,0.00019178,2]
[347968814,1736254479454,400.0,0.00013973,2]
[347968877,1736255432558,-373.4321453,0.00015687,2]
[347968879,1736255432568,-2127.23470233,0.00015845,2]
[347968881,1736255432577,-441.31,0.00017,2]
[347968883,1736255432586,-300.0,0.00018177,2]
[347968885,1736255432596,-24900.0,0.00018178,2]
[347968887,1736255432605,-566.363,0.0001822,2]
[347968889,1736255432615,-600.0,0.00018411,2]
[347968891,1736255432624,-818.09621706,0.00018481,2]
[347968893,1736255432633,-150.0,0.00018581,2]
[347968895,1736255432643,-150.0,0.00018581,2]
[347968897,1736255432652,-535.0,0.00018581,2]
[347968899,1736255432661,-2110.666,0.00018581,2]
[347968901,1736255432670,-2317.0,0.00018581,2]
[347968904,1736255432679,-153.0,0.000186,2]
[347968907,1736255432689,-153.0,0.000186,2]
[347968910,1736255432698,-153.7491537,0.000186,2]
[347968914,1736255432709,-260.8247169,0.000186,2]
[347968918,1736255432718,-600.0,0.00018603,2]
[347968921,1736255432727,-224.468,0.0001871,2]
[347968923,1736255432738,-3000.0,0.000188,2]
[347968926,1736255432747,-3000.0,0.0001881,2]
[347968929,1736255432757,-3000.0,0.0001882,2]
[347968932,1736255432766,-3000.0,0.0001883,2]
[347968937,1736255432778,-3000.0,0.0001884,2]
[347968940,1736255432787,-3000.0,0.0001885,2]
[347968943,1736255432797,-3000.0,0.0001886,2]
[347968946,1736255432807,-3000.0,0.0001887,2]
[347968948,1736255432817,-3000.0,0.0001888,2]
[347968951,1736255432827,-3000.0,0.0001889,2]
[347968954,1736255432837,-3000.0,0.000189,2]
[347968956,1736255432847,-1795.90789136,0.000189,2]
[347968958,1736255432856,-610.50059565,0.000189,2]
[347968960,1736255432866,-290.26379897,0.00018909,2]
[347968962,1736255432875,-3000.0,0.0001891,2]
[347968964,1736255432885,-3000.0,0.0001892,2]
[347968966,1736255432894,-3000.0,0.0001893,2]
[347968968,1736255432903,-3000.0,0.0001894,2]
[347968970,1736255432912,-3000.0,0.0001895,2]
[347968971,1736255432922,-1000.0,0.00018951,2]
[347968972,1736255432931,-3000.0,0.0001896,2]
[347968973,1736255432941,-3000.0,0.0001897,2]
[347968976,1736255432954,-3000.0,0.0001898,2]
[347968978,1736255432966,-195.5189043,0.00018986,2]
[347968980,1736255432976,-1000.0,0.00018987,2]
[347968982,1736255432986,-3000.0,0.0001899,2]
[347968983,1736255432996,-356.86800218,0.00018999,2]
[347968984,1736255433005,-10000.0,0.00019,2]
[347968985,1736255433014,-3000.0,0.00019,2]
[347968986,1736255433024,-698.8,0.00019,2]
[347968987,1736255433034,-10000.0,0.00019,2]
[347968988,1736255433043,-10000.0,0.00019,2]
[347968989,1736255433053,-10000.0,0.00019,20]
[347968990,1736255433062,-10000.0,0.00019,2]
[347968991,1736255433071,-10000.0,0.00019,2]
[347968992,1736255433081,-10000.0,0.00019,2]
[347968993,1736255433091,-10000.0,0.00019,2]
[347968994,1736255433100,-3777.0,0.00019,2]
[347968996,1736255433109,-1000.0,0.00019009,2]
[347968998,1736255433120,-3000.0,0.0001901,2]
[347969000,1736255433129,-3000.0,0.0001902,2]
[347969002,1736255433139,-1288.5586693,0.00019023,2]
[347969004,1736255433148,-499.0,0.00019029,2]
[347969006,1736255433157,-3000.0,0.0001903,2]
[347969007,1736255433167,-164.31,0.00019036,2]
[347969008,1736255433176,-161.0,0.00019036,2]
[347969009,1736255433186,-164.54,0.00019036,2]
[347969011,1736255433195,-3000.0,0.0001904,2]
[347969013,1736255433207,-3000.0,0.0001905,2]
[347969015,1736255433216,-1133.24867431,0.00019057,2]
[347969017,1736255433225,-3000.0,0.0001906,2]
[347969019,1736255433235,-3724.383443,0.0001907,2]
[347969021,1736255433246,-1795.90789136,0.00019072,2]
[347969023,1736255433258,-1092.28823991,0.00019078,2]
[347969025,1736255433268,-2521.44766631,0.00019078,2]
[347969027,1736255433278,-500.0,0.00019088,2]
[347969029,1736255433287,-167.0,0.00019089,2]
[347969031,1736255433297,-167.0,0.00019089,2]
[347969034,1736255433307,-154.0,0.00019089,2]
[347969036,1736255433317,-154.0,0.00019089,2]
[347969037,1736255433327,-154.0,0.00019089,2]
[347969039,1736255433336,-154.0,0.00019089,2]
[347969042,1736255433347,-154.0,0.00019089,2]
[347969043,1736255433356,-154.0,0.00019089,2]
[347969046,1736255433366,-154.0,0.00019089,2]
[347969047,1736255433375,-154.0,0.00019089,2]
[347969049,1736255433385,-154.0,0.00019089,2]
[347969051,1736255433394,-154.0,0.00019089,2]
[347969053,1736255433404,-154.0,0.00019089,2]
[347969055,1736255433413,-159.07,0.00019089,2]
[347969057,1736255433422,-188.0,0.000191,2]
[347969059,1736255433432,-822.0,0.000191,2]
[347969061,1736255433441,-300.0,0.000191,8]
[347969063,1736255433452,-150.0,0.000191,2]
[347969065,1736255433462,-200.97570884,0.00019119,2]
[347969067,1736255433471,-1000.0,0.0001912,2]
[347969069,1736255433481,-818.09621704,0.00019135,2]
[347969071,1736255433490,-201.0,0.0001914,2]
[347969074,1736255433500,-159.0,0.00019148,2]
[347969076,1736255433509,-198.56,0.00019148,2]
[347969078,1736255433519,-195.0,0.00019148,2]
[347969080,1736255433529,-159.93,0.00019148,2]
[347969082,1736255433539,-500.0,0.00019173,2]
[347969084,1736255433549,-500.0,0.00019173,2]
[347969086,1736255433559,-159.8236228,0.00019177,2]
[347969088,1736255433569,-13204.01191552,0.00019178,2]
[347969090,1736255433579,-74493.92071133,0.00019178,2]
[347969092,1736255433589,-767.76,0.00019178,2]
[347969094,1736255433598,-503.86339934,0.00019178,2]
[347969096,1736255433608,-500.0,0.00019178,2]
[347969098,1736255433618,-500.0,0.00019178,2]
[347969100,1736255433628,-538.79475046,0.00019178,2]
[347969102,1736255433639,-501.94892536,0.00019178,2]
[347969104,1736255433648,-151.0,0.00019178,2]
[347969106,1736255433658,-500.0,0.00019178,2]
[347969108,1736255433667,-612.86144188,0.00019178,2]
[347969110,1736255433677,-509.39432861,0.00019178,2]
[347969112,1736255433687,-501.98364643,0.00019178,2]
[347969113,1736255433696,-500.0,0.00019178,2]
[347969115,1736255433709,-507.59529068,0.00019178,2]
[347969117,1736255433719,-500.0,0.00019178,2]
[347969119,1736255433729,-500.0,0.00019178,2]
[347969122,1736255433740,-500.0,0.00019178,2]
[347969124,1736255433750,-500.0,0.00019178,2]
[347969126,1736255433760,-500.0,0.00019178,2]